bitfinex-derivatives/quotes_ETHF0:USTF0_20210102
["timestamp","ask_amount","ask_price","bid_price","bid_amount"]
[1609612264942,2.5515,777.23,777.17,6.01438]
[1609612265745,4.722,777.39,777.17,6.01438]
[1609612265945,0.2722221,777.54,777.17,6.01438]
[1609612266750,6.01438,777.52,777.42,6.01438]
[1609612267147,9.81838,777.52,777.42,6.01438]
[1609612268254,2.5668,777.51,777.42,6.01438]
[1609612268655,2.5668,777.51,777.5,6.01438]
[1609612269054,9.81838,777.52,777.5,6.01438]
[1609612270255,2.5933,777.51,777.5,6.01438]
[1609612270958,9.81838,777.52,777.5,6.01438]
[1609612271958,2.5694,777.51,777.5,6.01438]
[1609612272158,9.81838,777.52,777.5,6.01438]
[1609612272758,3.804,777.52,777.5,6.01438]
[1609612273161,6.01438,777.6,777.14,3.051]
[1609612274261,2.5465,777.59,777.14,3.051]
[1609612274461,3.308,777.59,777.14,3.051]
[1609612275664,2.6069,777.58,777.14,3.051]
[1609612275863,2.6069,777.58,777.23,0.6]
[1609612276864,2.6069,777.58,777.48,6.01438]
[1609612277063,3.308,777.59,777.48,6.01438]
[1609612278263,2.5673,777.58,777.48,6.01438]
[1609612278865,2.5673,777.58,777.57,6.01438]
[1609612280466,2.5673,777.58,777.23,0.6]
[1609612280766,2.5673,777.58,777.3,6.01438]
[1609612281569,3.308,777.59,777.3,6.01438]
[1609612281969,6.01438,777.6,777.3,6.01438]
[1609612282573,2.5362,777.59,777.3,6.01438]
[1609612282968,10.87338,777.6,777.3,6.01438]
[1609612283969,2.609,777.59,777.3,6.01438]
[1609612284672,10.87338,777.6,777.3,6.01438]
[1609612284869,6.01438,777.48,777.3,6.01438]
[1609612286273,2.5726,777.47,777.3,6.01438]
[1609612286773,2.5726,777.47,777.44,6.01438]
[1609612287374,6.01438,777.48,777.44,6.01438]
[1609612288277,2.5672,777.47,777.44,6.01438]
[1609612288873,6.01438,777.48,777.44,6.01438]
[1609612291574,21.43108,777.48,777.44,6.01438]
[1609612292074,2.5675,777.47,777.44,6.01438]
[1609612292575,21.43108,777.48,777.44,6.01438]
[1609612299488,2.6001,777.47,777.44,6.01438]
[1609612301193,21.43108,777.48,777.44,6.01438]
[1609612302193,2.6014,777.47,777.44,6.01438]
[1609612303895,21.43108,777.48,777.44,6.01438]
[1609612304896,2.6006,777.47,777.44,6.01438]
[1609612305998,21.43108,777.48,777.44,6.01438]
[1609612307001,2.5531,777.47,777.44,6.01438]
[1609612308602,21.43108,777.48,777.44,6.01438]
[1609612309505,6.01438,777.48,777.44,6.01438]
[1609612309704,2.5803,777.47,777.44,6.01438]
[1609612310103,6.01438,777.48,777.44,6.01438]
[1609612320015,4.859,777.6,777.44,6.01438]
[1609612320416,1.45689446,777.7,777.44,6.01438]
[1609612321517,1.45689446,777.7,777.61,6.01438]
[1609612323519,1.45689446,777.7,777.69,6.01438]
[1609612323722,1.45628332,778.05,777.69,6.01438]
[1609612324524,1.33820629,778.05,777.69,6.01438]
[1609612324724,1.45614899,778.17,777.69,6.01438]
[1609612325525,1.45614899,778.17,778.16,6.01438]
[1609612327830,6.01438,778.18,778.16,6.01438]
[1609612328229,1.45616798,778.22,778.16,6.01438]
[1609612331536,1.45603499,778.29,778.16,6.01438]
[1609612333540,1.45603499,778.29,778.28,6.01438]
[1609612334238,1.45598682,778.32,778.28,6.01438]
[1609612336140,6.01438,778.38,778.28,6.01438]
[1609612336141,1.4559126,778.34,778.28,6.01438]
[1609612337342,1.45591939,778.36,778.28,6.01438]
[1609612338340,1.4560017,778.33,778.28,6.01438]
[1609612338541,4.6170017,778.33,778.28,6.01438]
[1609612340444,3.161,778.33,778.28,6.01438]
[1609612343052,1.45596823,778.32,778.28,6.01438]
[1609612343448,1.45596823,778.32,777.89,4.38]
[1609612343650,6.01438,778.27,778.22,6.01438]
[1609612345756,6.01438,778.27,777.73,3.538]
[1609612345955,6.01438,778.27,777.61,17.15063538]
[1609612347758,6.01438,778.27,778.14,6.01438]
[1609612347956,3.161,778.33,778.14,6.01438]
[1609612348159,1.45604401,778.35,778.14,6.01438]
[1609612348757,1.45604401,778.35,777.78,4.91]
[1609612349157,5.92704401,778.35,777.78,4.91]
[1609612349658,6.01438,778.28,778.23,6.01438]
[1609612349858,6.01438,778.28,777.78,4.91]
[1609612351659,6.01438,778.28,778.22,6.01438]
[1609612352660,6.01438,778.28,777.78,4.91]
[1609612353060,6.01438,778.28,777.6,17.1745773]
[1609612353261,15.0,778.27,777.61,17.17997217]
[1609612353763,6.01438,778.17,778.08,6.01438]
[1609612353961,10.62538,778.17,778.08,6.01438]
[1609612354261,10.62538,778.17,777.54,3.272]
[1609612354662,10.62538,778.17,777.52,17.18468982]
[1609612355163,10.62538,778.17,777.51,17.19244257]
[1609612355664,10.62538,778.17,778.09,6.01438]
[1609612359971,4.611,778.17,778.09,6.01438]
[1609612360171,1.45606977,778.24,778.09,6.01438]
[1609612360574,1.45607006,778.25,778.09,6.01438]
[1609612361976,1.45607006,778.25,778.19,6.01438]
[1609612362173,1.45606839,778.24,778.19,6.01438]
[1609612363076,1.45606364,778.25,777.68,3.92]
[1609612363274,1.45606364,778.25,777.54,17.13665645]
[1609612363975,1.45606364,778.25,778.24,6.01438]
[1609612374488,1.4557946,778.26,778.24,6.01438]
[1609612375388,4.471,778.35,778.24,6.01438]
[1609612375589,6.01438,778.39,778.24,6.01438]
[1609612375989,6.01438,778.39,778.38,6.01438]
[1609612384697,1.45576466,778.47,778.38,6.01438]
[1609612385197,1.45576185,778.45,778.38,6.01438]
[1609612385397,5.85676185,778.45,778.38,6.01438]
[1609612385798,4.401,778.45,778.38,6.01438]
[1609612390506,1.45561516,778.53,778.38,6.01438]
[1609612391810,1.45552891,778.58,778.38,6.01438]
[1609612392210,1.45552891,778.58,778.57,6.01438]
[1609612393012,1.2588358,778.61,778.57,6.01438]
[1609612393013,1.45553312,778.74,778.57,6.01438]
[1609612394218,1.45551519,778.75,778.08,3.437]
[1609612395215,1.45553735,778.65,778.08,3.437]
[1609612395414,4.69953735,778.65,778.08,3.437]
[1609612395616,4.69953735,778.65,777.92,17.09052459]
[1609612396214,6.01438,778.57,778.46,6.01438]
[1609612398119,1.41627436,778.6,778.56,6.01438]
[1609612398719,1.4162184,778.62,778.56,6.01438]
[1609612400420,3.244,778.65,778.56,6.01438]
[1609612401020,6.01438,778.69,778.56,6.01438]
[1609612401521,1.41626993,778.65,778.56,6.01438]
[1609612402021,4.68526993,778.65,778.56,6.01438]
[1609612402421,4.68526993,778.65,778.64,6.01438]
[1609612404324,3.269,778.65,778.64,6.01438]
[1609612407125,1.41630105,778.67,778.64,6.01438]
[1609612409128,1.41630105,778.67,778.04,3.007]
[1609612409429,1.41628654,778.69,778.04,3.007]
[1609612409629,3.79,778.67,778.04,3.8]
[1609612410628,3.79,778.67,778.57,6.01438]
[1609612413744,18.79,778.67,778.57,6.01438]
[1609612413937,18.79,778.67,778.04,3.8]
[1609612414636,6.01438,778.53,778.46,6.01438]
[1609612418143,20.20630994,778.67,778.46,6.01438]
[1609612418345,18.79,778.67,778.46,6.01438]
[1609612418743,6.01438,778.59,778.46,6.01438]
[1609612418943,15.0,778.58,778.46,6.01438]
[1609612419446,15.0,778.58,778.01,4.524]
[1609612419645,73.3647,778.57,778.01,4.524]
[1609612419846,15.0,778.56,778.01,4.524]
[1609612420545,15.0,778.56,777.94,17.05175288]
[1609612420746,6.01438,778.3,778.17,6.01438]
[1609612420947,10.27338,778.3,778.17,6.01438]
[1609612421348,4.259,778.3,778.17,6.01438]
[1609612422648,4.259,778.3,778.29,6.01438]
[1609612423549,1.41622477,778.52,778.29,6.01438]
[1609612424050,6.01438,778.64,778.29,6.01438]
[1609612424350,3.79,778.67,778.29,6.01438]
[1609612424550,1.41614921,778.73,778.29,6.01438]
[1609612424751,1.41614921,778.73,778.66,6.01438]
[1609612425853,1.41621893,778.77,778.66,6.01438]
[1609612427455,1.41614944,778.74,778.66,6.01438]
[1609612427854,5.47014944,778.74,778.66,6.01438]
[1609612428856,4.054,778.74,778.66,6.01438]
[1609612432759,3.913,778.74,778.66,6.01438]
[1609612434260,3.913,778.74,778.2,3.906]
[1609612434760,3.913,778.74,778.58,6.01438]
[1609612437966,1.41620131,778.81,778.58,6.01438]
[1609612438769,1.41620131,778.81,778.71,6.01438]
[1609612439269,1.41614497,778.84,778.71,6.01438]
[1609612440270,1.41614863,778.87,778.71,6.01438]
[1609612440770,1.41614863,778.87,778.79,6.01438]
[1609612441971,1.41601007,778.88,778.79,6.01438]
[1609612443075,1.41597982,778.94,778.79,6.01438]
[1609612443774,6.01438,778.99,778.79,6.01438]
[1609612443775,1.41596782,778.95,778.79,6.01438]
[1609612443974,1.41596782,778.95,778.2,3.906]
[1609612444174,4.40596782,778.95,778.17,16.87925263]
[1609612444874,4.40596782,778.95,778.9,6.01438]
[1609612445578,1.41590598,778.94,778.9,6.01438]
[1609612446777,2.99,778.95,778.9,6.01438]
[1609612447879,1.41590859,778.93,778.9,6.01438]
[1609612449180,4.40587946,778.95,778.9,6.01438]
[1609612449981,2.99,778.95,778.9,6.01438]
[1609612450183,1.41586202,778.98,778.9,6.01438]
[1609612451084,6.01438,778.99,778.9,6.01438]
[1609612452884,6.01438,778.99,778.98,6.01438]
[1609612453086,1.41574515,779.04,778.98,6.01438]
[1609612454087,1.41560783,779.08,778.98,6.01438]
[1609612454789,1.41560783,779.08,779.07,6.01438]
[1609612457993,1.41542579,779.14,779.07,6.01438]
[1609612459794,6.01438,779.29,779.07,6.01438]
[1609612459795,1.41542215,779.17,779.07,6.01438]
[1609612460395,1.41542215,779.17,778.58,3.217]
[1609612460596,5.48942215,779.17,778.58,3.217]
[1609612460997,5.48942215,779.17,779.09,6.01438]
[1609612461196,1.4153847,779.16,779.09,6.01438]
[1609612462298,4.074,779.17,779.09,6.01438]
[1609612462299,4.70306434,779.17,779.09,6.01438]
[1609612463299,1.41538744,779.15,779.09,6.01438]
[1609612466005,1.4154243,779.16,779.09,6.01438]
[1609612466803,5.48940773,779.17,779.09,6.01438]
[1609612468208,4.074,779.17,779.09,6.01438]
[1609612468407,1.41539845,779.18,779.09,6.01438]
[1609612469609,1.41545004,779.17,779.09,6.01438]
[1609612469809,4.90045004,779.17,779.09,6.01438]
[1609612470913,0.62909465,779.16,779.09,6.01438]
[1609612471715,1.41547672,779.16,779.09,6.01438]
[1609612474621,16.41547672,779.16,778.58,3.217]
[1609612475021,16.41547672,779.16,778.42,4.095]
[1609612475022,6.01438,778.98,778.86,6.01438]
[1609612475421,9.46338,778.98,778.86,6.01438]
[1609612477022,9.46338,778.98,778.94,6.01438]
[1609612477220,3.449,778.98,778.94,6.01438]
[1609612480322,7.4298738,779.14,778.94,6.01438]
[1609612481024,7.4298738,779.14,779.13,6.01438]
[1609612481233,6.01438,779.14,779.13,6.01438]
[1609612481523,21.01438,779.14,778.59,4.251]
[1609612483027,6.01438,778.95,778.88,6.01438]
[1609612483426,10.67738,778.95,778.88,6.01438]
[1609612485428,15.0,778.94,778.59,4.251]
[1609612485628,15.0,778.94,778.42,4.095]
[1609612485828,15.0,778.94,778.3,16.81781249]
[1609612486032,15.0,778.94,777.45,7.8265]
[1609612486033,15.0,778.94,778.28,16.83151095]
[1609612487029,6.01438,778.66,778.6,6.01438]
[1609612487532,15.0,778.65,778.6,6.01438]
[1609612488229,15.0,778.65,778.16,16.84056071]
[1609612489030,15.0,778.65,778.56,6.01438]
[1609612489231,15.0,778.65,778.11,16.84972579]
[1609612490531,15.0,778.65,778.09,16.86341074]
[1609612491137,6.01438,778.47,778.46,6.01438]
[1609612492039,9.10638,778.47,778.46,6.01438]
[1609612494043,24.10638,778.47,778.46,6.01438]
[1609612495245,24.10638,778.47,778.01,0.6]
[1609612496845,12.0017,778.46,778.01,0.6]
[1609612497051,6.01438,778.02,778.01,0.6]
[1609612497249,10.84838,778.02,778.01,0.6]
[1609612498348,4.834,778.02,778.01,0.6]
[1609612502149,6.01438,778.05,778.01,0.6]
[1609612504453,15.0,778.45,778.01,0.6]
[1609612505052,6.01438,778.07,778.01,0.6]
[1609612505253,24.44838,778.07,778.01,0.6]
[1609612506253,9.44838,778.07,778.01,0.6]
[1609612507253,15.0,778.06,778.01,0.6]
[1609612511557,15.0,778.06,777.55,6.01438]
[1609612512865,9.44838,778.07,777.55,6.01438]
[1609612513060,9.44838,778.07,777.46,16.89297029]
[1609612513061,6.01438,777.96,777.76,6.01438]
[1609612513460,3.434,778.07,777.76,6.01438]
[1609612513659,0.62980835,778.23,777.76,6.01438]
[1609612515263,7.43118749,778.28,778.14,6.01438]
[1609612516864,6.01438,778.28,778.14,6.01438]
[1609612518067,1.41669642,778.43,778.14,6.01438]
[1609612518466,3.092,778.47,778.14,6.01438]
[1609612518766,0.62956611,778.5,778.14,6.01438]
[1609612519166,6.01438,778.39,778.37,6.01438]
[1609612519365,10.19538,778.39,778.37,6.01438]
[1609612521567,10.19538,778.39,777.94,16.81767922]
[1609612522468,25.19538,778.39,777.94,16.81767922]
[1609612522869,25.19538,778.39,777.87,3.063]
[1609612523268,25.19538,778.39,777.86,16.82980408]
[1609612523269,6.01438,778.15,777.86,16.82980408]
[1609612523670,10.38138,778.15,777.86,16.82980408]
[1609612524575,10.38138,778.15,777.55,26.59173284]
[1609612524576,10.38138,778.15,777.61,16.83708038]
[1609612524971,15.0,778.14,777.61,16.83708038]
[1609612525173,6.01438,777.99,777.71,6.01438]
[1609612525374,9.11038,777.99,777.71,6.01438]
[1609612527175,6.01438,777.89,777.71,6.01438]
[1609612527374,3.096,777.99,777.71,6.01438]
[1609612529178,6.01438,777.98,777.84,6.01438]
[1609612533587,6.01438,777.98,777.56,0.6]
[1609612535285,6.01438,777.98,777.91,6.01438]
[1609612541897,3.096,777.99,777.56,0.6]
[1609612542096,4.367,778.15,777.56,0.6]
[1609612542295,0.62979933,778.27,777.56,0.6]
[1609612543498,6.01438,778.03,777.91,6.01438]
[1609612543797,10.34738,778.03,777.91,6.01438]
[1609612547502,6.01438,777.92,777.65,6.01438]
[1609612549605,6.01438,777.92,777.78,6.01438]
[1609612555109,4.333,778.03,777.38,20.71402315]
[1609612555308,1.41723948,778.23,777.38,20.71402315]
[1609612555510,1.41720365,778.22,777.38,4.108]
[1609612555710,6.01438,777.92,777.85,6.01438]
[1609612556109,10.04838,777.92,777.85,6.01438]
[1609612558213,4.034,777.92,777.4,16.64750454]
[1609612559513,4.034,777.92,777.42,16.71321557]
[1609612559713,10.04838,777.92,777.91,6.01438]
[1609612560612,10.04838,777.92,777.4,16.73398098]
[1609612561414,15.0,777.91,777.4,16.73398098]
[1609612561817,6.01438,777.8,777.79,6.01438]
[1609612569623,4.034,777.92,777.79,6.01438]
[1609612569822,6.01438,777.9,777.79,6.01438]
[1609612570224,10.50138,777.9,777.79,6.01438]
[1609612573829,6.01438,777.82,777.79,6.01438]
[1609612578330,6.01438,777.82,777.79,6.61438]
[1609612580432,4.487,777.9,777.79,6.61438]
[1609612580632,15.62980625,778.21,777.79,6.61438]
[1609612581032,0.62980625,778.21,777.79,6.61438]
[1609612581234,4.44825781,778.22,777.79,6.61438]
[1609612581235,3.661,778.22,777.79,6.61438]
[1609612581632,15.0,778.21,777.79,6.61438]
[1609612582233,6.01438,778.03,778.02,6.01438]
[1609612582434,10.73938,778.03,777.79,0.6]
[1609612584240,10.73938,778.03,777.94,6.01438]
[1609612585741,10.73938,778.03,777.79,0.6]
[1609612586242,10.73938,778.03,777.89,6.01438]
[1609612588343,10.73938,778.03,777.97,6.01438]
[1609612593150,25.73938,778.03,777.97,6.01438]
[1609612595450,25.73938,778.03,777.79,0.6]
[1609612595752,10.73938,778.03,777.79,0.6]
[1609612596250,10.73938,778.03,778.02,6.01438]
[1609612596450,25.73938,778.03,778.02,6.01438]
[1609612597351,10.73938,778.03,778.02,6.01438]
[1609612597852,25.73938,778.03,778.02,6.01438]
[1609612598958,10.73938,778.03,778.02,6.01438]
[1609612600258,4.725,778.03,778.02,6.01438]
[1609612600861,15.0,778.17,778.02,6.01438]
[1609612603662,6.01438,778.18,778.02,6.01438]
[1609612605363,21.01438,778.18,778.02,6.01438]
[1609612608465,21.01438,778.18,777.47,16.69665916]
[1609612609670,21.01438,778.18,777.44,16.70043786]
[1609612610370,6.01438,777.89,777.82,6.01438]
[1609612610569,9.65438,777.89,777.82,6.01438]
[1609612616077,9.65438,777.89,777.42,16.72215163]
[1609612616078,15.0,777.88,777.42,16.72215163]
[1609612616477,6.01438,777.59,777.43,6.01438]
[1609612616677,15.0,777.58,777.43,6.01438]
[1609612617981,96.0952,777.49,777.39,16.73333409]
[1609612618179,15.0,777.48,777.39,16.73333409]
[1609612618383,101.57948,777.4,777.18,16.76861466]
[1609612618580,15.0,777.39,777.18,16.76861466]
[1609612620385,6.01438,777.19,777.18,16.76861466]
[1609612620584,21.01438,777.19,777.18,16.76861466]
[1609612621684,6.01438,777.19,777.18,16.76861466]
[1609612623186,21.01438,777.19,777.18,16.76861466]
[1609612625389,6.01438,777.19,777.18,16.76861466]
[1609612625589,21.01438,777.19,777.18,16.76861466]
[1609612630600,6.01438,777.19,777.18,16.76861466]
[1609612630793,6.01438,777.19,777.03,4.398]
[1609612630993,6.01438,777.19,776.98,16.80082173]
[1609612631893,4.455,777.4,776.98,16.80082173]
[1609612632096,4.455,777.4,776.81,6.01438]
[1609612632295,0.63029141,777.54,776.98,4.635]
[1609612632497,6.01438,777.51,777.35,6.01438]
[1609612632697,0.63029141,777.54,777.35,6.01438]
[1609612633498,18.217,777.61,777.35,6.01438]
[1609612634502,6.01438,777.58,777.46,6.01438]
[1609612635902,3.217,777.61,777.46,6.01438]
[1609612636402,1.4181002,777.75,777.46,6.01438]
[1609612636602,6.01438,777.66,777.46,6.01438]
[1609612636802,15.0,777.65,777.46,6.01438]
[1609612637003,15.0,777.65,776.98,4.635]
[1609612637203,15.0,777.65,776.97,16.89531671]
[1609612638505,15.0,777.65,777.48,6.01438]
[1609612639404,15.0,777.65,777.12,3.262]
[1609612640510,15.0,777.65,777.43,6.01438]
[1609612640910,15.0,777.65,777.12,3.262]
[1609612642311,1.41820741,777.63,777.12,3.262]
[1609612642510,6.01438,777.35,777.12,9.27638]
[1609612642710,15.0,777.34,777.12,9.27638]
[1609612643211,15.0,777.34,777.12,3.262]
[1609612643914,15.0,777.34,776.88,0.6]
[1609612644513,15.0,777.34,777.11,6.01438]
[1609612644713,15.0,777.33,777.11,6.01438]
[1609612645817,6.01438,777.35,777.11,6.01438]
[1609612646218,6.01438,777.35,776.88,0.6]
[1609612646219,15.0,777.34,776.88,0.6]
[1609612646619,6.01438,777.1,776.98,6.01438]
[1609612646820,21.01438,777.1,776.98,6.01438]
[1609612647218,6.01438,777.1,776.98,6.01438]
[1609612647420,4.82,777.18,776.98,6.01438]
[1609612648526,6.01438,777.14,776.98,6.01438]
[1609612650626,6.01438,777.14,777.09,6.01438]
[1609612652628,4.82,777.18,777.09,6.01438]
[1609612652828,15.0,777.46,777.09,6.01438]
[1609612653929,3.301,777.47,777.09,6.01438]
[1609612654131,16.41833697,777.57,777.09,6.01438]
[1609612654632,6.01438,777.32,777.25,6.01438]
[1609612654832,9.64438,777.32,777.25,6.01438]
[1609612655031,3.63,777.32,777.25,6.01438]
[1609612656331,3.63,777.32,776.88,0.6]
[1609612656731,3.63,777.32,777.15,6.01438]
[1609612659937,3.61882028,777.32,777.15,6.01438]
[1609612660134,15.0,777.39,777.15,6.01438]
[1609612660736,6.01438,777.29,777.15,6.01438]
[1609612661837,9.48138,777.29,777.15,6.01438]
[1609612663238,3.467,777.29,776.88,0.6]
[1609612664840,3.467,777.29,777.24,6.01438]
[1609612665439,3.467,777.29,776.88,0.6]
[1609612665641,3.467,777.29,776.85,16.89878628]
[1609612666741,3.467,777.29,777.22,6.01438]
[1609612667142,6.01438,777.37,776.85,16.89878628]
[1609612668746,6.01438,777.28,777.19,6.01438]
[1609612670746,6.01438,777.2,777.19,6.01438]
[1609612684560,4.053,777.29,777.19,6.01438]
[1609612684760,15.0,777.57,777.19,6.01438]
[1609612684960,15.0,777.56,777.36,6.01438]
[1609612685960,15.0,777.55,777.36,6.01438]
[1609612687062,6.01438,777.51,777.36,6.01438]
[1609612687662,0.63030405,777.68,777.36,6.01438]
[1609612687862,1.41804456,777.76,777.36,6.01438]
[1609612688961,1.41804456,777.76,777.75,6.01438]
[1609612689162,0.630154,777.88,777.75,6.01438]
[1609612690264,3.64,777.89,777.75,6.01438]
[1609612690465,0.63005678,778.05,777.75,6.01438]
[1609612690966,11.3897,778.54,777.55,3.246]
[1609612690967,0.62999413,778.18,778.04,6.01438]
[1609612692271,6.01438,778.21,778.04,6.01438]
[1609612692969,6.01438,778.21,778.16,6.01438]
[1609612693974,0.62993223,778.28,777.55,3.246]
[1609612694872,1.41733609,778.26,777.55,3.246]
[1609612695071,4.94733609,778.26,778.16,6.01438]
[1609612696374,0.6692747,778.22,778.16,6.01438]
[1609612697071,6.01438,778.17,778.16,6.01438]
[1609612697772,6.01438,778.17,777.55,3.246]
[1609612697973,6.01438,778.17,777.48,16.92157123]
[1609612699084,6.01438,778.17,777.49,16.91918939]
[1609612699282,6.01438,778.17,778.07,6.01438]
[1609612699884,6.01438,778.17,777.55,4.005]
[1609612700284,21.01438,778.17,777.55,4.005]
[1609612701285,6.01438,777.96,777.95,6.01438]
[1609612701586,9.58838,777.96,777.95,6.01438]
[1609612702588,3.574,777.96,777.95,6.01438]
[1609612706894,9.54438,778.26,777.95,6.01438]
[1609612707292,9.54438,778.26,778.22,6.01438]
[1609612709697,9.54438,778.26,777.6,16.88511769]
[1609612710198,9.54438,778.26,777.59,16.88665715]
[1609612711398,9.54438,778.26,778.12,6.01438]
[1609612712501,24.54438,778.26,778.12,6.01438]
[1609612713401,6.01438,778.13,778.12,6.01438]
[1609612723113,6.01438,778.13,777.6,16.90712511]
[1609612723514,3.53,778.26,778.0,6.01438]
[1609612723715,0.66914326,778.37,778.0,6.01438]
[1609612724113,0.66916253,778.36,778.0,6.01438]
[1609612724313,5.49616253,778.36,778.0,6.01438]
[1609612725517,6.01438,778.01,778.0,6.01438]
[1609612731528,4.033,778.19,778.0,6.01438]
[1609612731729,6.01438,778.27,778.0,6.01438]
[1609612733429,6.01438,778.27,778.19,6.01438]
[1609612740342,4.827,778.36,777.76,3.473]
[1609612740539,1.45632221,778.4,777.62,16.880516]
[1609612740740,1.45638439,778.38,777.6,16.87567614]
[1609612740940,5.97238439,778.38,777.6,16.87567614]
[1609612741639,5.97238439,778.38,778.19,6.01438]
[1609612742343,5.18514958,778.38,778.19,6.01438]
[1609612743744,6.01438,778.22,778.19,6.01438]
[1609612744343,6.01438,778.22,777.84,4.899]
[1609612745545,10.06038,778.22,777.84,4.899]
[1609612745745,10.06038,778.22,778.17,6.01438]
[1609612751457,10.06038,778.22,777.84,4.899]
[1609612751654,10.06038,778.22,777.63,16.89834122]
[1609612751853,10.06038,778.22,778.04,6.01438]
[1609612753855,10.06038,778.22,778.15,6.01438]
[1609612762357,10.06038,778.22,777.83,3.245]
[1609612762558,25.06038,778.22,777.83,3.245]
[1609612762759,25.06038,778.22,777.61,16.91415372]
[1609612763058,25.06038,778.22,777.67,16.90543013]
[1609612763560,25.06038,778.22,777.55,4.005]
[1609612763760,6.01438,778.08,777.96,6.01438]
[1609612775975,21.01438,778.08,777.96,6.01438]
[1609612776373,21.01438,778.08,777.55,4.005]
[1609612776573,21.01438,778.08,777.53,16.91369884]
[1609612778079,21.01438,778.08,777.58,6.01438]
[1609612778080,6.01438,777.84,777.58,6.01438]
[1609612780079,6.01438,777.84,777.67,6.01438]
[1609612780480,15.0,777.83,777.67,6.01438]
[1609612782283,21.01438,777.84,777.67,6.01438]
[1609612785785,6.01438,777.84,777.67,6.01438]
[1609612793599,4.332,777.85,777.67,6.01438]
[1609612793799,0.66944465,778.1,777.67,6.01438]
[1609612794202,6.01438,777.95,777.81,6.01438]
[1609612794601,9.90638,777.95,777.81,6.01438]
[1609612798207,9.90638,777.95,777.9,6.01438]
[1609612798408,9.90638,777.95,777.39,16.91619267]
[1609612798610,9.90638,777.95,777.38,4.29]
[1609612798611,9.90638,777.95,777.41,16.91378288]
[1609612799208,9.90638,777.95,777.38,4.29]
[1609612799409,9.90638,777.95,777.35,16.91934405]
[1609612800008,9.90638,777.95,777.38,16.91717033]
[1609612800208,9.90638,777.95,777.84,6.01438]
[1609612813424,24.90638,777.95,777.84,6.01438]
[1609612813624,24.90638,777.95,777.73,3.213]
[1609612814025,24.90638,777.95,777.54,4.147]
[1609612814426,6.01438,777.82,777.44,16.86967951]
[1609612814626,15.0,777.81,777.44,16.86967951]
[1609612815027,15.0,777.81,777.43,16.88018202]
[1609612815628,6.01438,777.82,777.43,16.88018202]
[1609612815826,21.01438,777.82,777.43,16.88018202]
[1609612816329,21.01438,777.82,777.38,3.614]
[1609612816330,6.01438,777.72,777.57,6.01438]
[1609612817428,6.01438,777.72,777.38,3.614]
[1609612817629,6.01438,777.72,747.58,0.09139118]
[1609612817630,6.01438,777.72,777.25,16.89338453]
[1609612818030,21.01438,777.72,777.25,16.89338453]
[1609612818432,21.01438,777.72,776.63,29.17948237]
[1609612818433,6.01438,777.6,777.4,6.01438]
[1609612818630,15.0,777.59,777.4,6.01438]
[1609612819132,19.867,777.59,777.4,6.01438]
[1609612819735,19.867,777.59,777.09,16.91473244]
[1609612820140,19.867,777.59,777.01,16.92101428]
[1609612820339,6.01438,777.42,777.26,6.01438]
[1609612826144,6.01438,777.42,776.97,16.8840073]
[1609612826346,6.01438,777.42,776.81,19.95382681]
[1609612826347,6.01438,777.42,776.96,16.87483207]
[1609612826545,6.01438,777.3,777.08,6.01438]
[1609612828447,6.01438,777.3,777.16,6.01438]
[1609612830347,3.431,777.42,777.16,6.01438]
[1609612830549,3.431,777.42,777.31,6.01438]